bitfinex/quotes_BTCUSD_20230405
["timestamp","ask_amount","ask_price","bid_price","bid_amount"]
[1680704189547,0.00021,28201.0,28196.0,0.042893]
[1680704189753,0.00021,28203.0,28197.0,0.042439]
[1680704189961,0.35471056,28203.0,28197.0,0.22703681]
[1680704190213,0.35471056,28202.0,28198.0,0.129005]
[1680704190434,0.015,28201.0,28198.0,0.001]
[1680704191062,0.00021,28205.0,28198.0,0.129066]
[1680704191269,0.35471056,28204.0,28199.0,0.14189681]
[1680704191519,0.002,28203.0,28199.0,0.14189681]
[1680704191733,0.00021,28203.0,28195.0,0.08532]
[1680704191944,0.12676612,28202.0,28199.0,0.041737]
[1680704192130,0.00021,28204.0,28200.0,0.042191]
[1680704192364,0.69378,28208.0,28198.0,0.005]
[1680704192365,0.00021,28205.0,28198.0,0.005]
[1680704192573,0.05154891,28202.0,28199.0,0.041895]
[1680704192814,0.19344572,28202.0,28200.0,0.030455]
[1680704193052,0.05154891,28202.0,28200.0,0.08514]
[1680704193267,0.05154891,28202.0,28201.0,0.031898]
[1680704193495,0.04854891,28202.0,28199.0,0.08514]
[1680704193707,0.04654891,28202.0,28200.0,0.031945]
[1680704193918,0.04854891,28202.0,28200.0,0.046945]
[1680704194126,0.04854891,28202.0,28201.0,0.031039]
[1680704194348,0.04654891,28202.0,28197.0,0.031515]
[1680704194555,0.19044572,28202.0,28200.0,0.031758]
[1680704194761,0.04654891,28202.0,28200.0,0.031758]
[1680704194968,0.04654891,28202.0,28197.0,0.0795]
[1680704195169,0.18844572,28202.0,28197.0,0.03167]
[1680704195378,0.00021,28204.0,28198.0,0.031968]
[1680704195587,0.35471056,28204.0,28199.0,0.031008]
[1680704195813,0.101,28202.0,28200.0,0.011]
[1680704196031,0.35471056,28202.0,28195.0,0.07974]
[1680704196241,0.14189681,28201.0,28197.0,0.004]
[1680704196446,0.05089029,28201.0,28195.0,0.07974]
[1680704196631,0.14189681,28200.0,28195.0,0.07974]
[1680704196896,0.49660737,28200.0,28198.0,0.0795]
[1680704197117,0.49660737,28200.0,28196.0,0.07974]
[1680704197118,0.35471056,28200.0,28196.0,0.07974]
[1680704197334,0.35471056,28200.0,28190.0,0.03507]
[1680704197335,0.014186,28197.0,28194.0,0.00012]
[1680704197547,0.014186,28197.0,28183.0,0.13148624]
[1680704197548,0.89402837,28196.0,28187.0,0.07956]
[1680704197758,0.89402837,28196.0,28183.0,0.13166624]
[1680704197759,0.2816,28192.0,28184.0,0.03996]
[1680704197975,0.14189681,28191.0,28184.0,0.03984]
[1680704198197,0.14189681,28191.0,28183.0,0.03996]
[1680704198407,0.14189681,28191.0,28185.0,0.03978]
[1680704198619,0.14189681,28191.0,28184.0,0.03978]
[1680704198829,0.14189681,28191.0,28186.0,0.03978]
[1680704198830,0.028967,28190.0,28186.0,0.03978]
[1680704199085,0.17086381,28190.0,28185.0,0.03978]
[1680704199307,0.36471056,28191.0,28185.0,0.001]
[1680704199515,0.36471056,28191.0,28186.0,0.03978]
[1680704199516,0.50660737,28191.0,28186.0,0.03978]
[1680704199717,0.35471056,28191.0,28184.0,0.03996]
[1680704199826,0.14189681,28190.0,28186.0,0.004]
[1680704200030,0.35471056,28191.0,28185.0,0.030698]
[1680704200239,0.01,28191.0,28187.0,0.03978]
[1680704200435,0.00021,28197.0,28189.0,0.03066]
[1680704200635,0.3948,28199.0,28189.0,0.03066]
[1680704200636,0.014186,28196.0,28189.0,0.35471056]
[1680704200855,0.00021,28197.0,28190.0,0.03978]
[1680704201061,0.00021,28197.0,28191.0,0.031513]
[1680704201263,0.05126821,28195.0,28191.0,0.53207056]
[1680704201515,0.05126821,28195.0,28193.0,0.030162]
[1680704202061,0.05126821,28195.0,28194.0,0.03978]
[1680704202268,0.05126821,28195.0,28193.0,0.03978]
[1680704202469,0.05126821,28195.0,28193.0,0.001]
[1680704202470,0.06126821,28195.0,28193.0,0.001]
[1680704202669,0.01,28195.0,28193.0,0.001]
[1680704202926,0.027529,28194.0,28185.0,0.03978]
[1680704203126,0.14189681,28193.0,28187.0,0.03978]
[1680704203325,0.14189681,28193.0,28188.0,0.35471056]
[1680704203749,0.14189681,28193.0,28189.0,0.03978]
[1680704203965,0.14189681,28192.0,28189.0,0.03978]
[1680704204184,0.027876,28191.0,28187.0,0.03978]
[1680704204391,0.027876,28191.0,28185.0,0.00012]
[1680704204392,0.51079637,28190.0,28185.0,0.03978]
[1680704204616,0.027705,28189.0,28188.0,0.03978]
[1680704204835,0.027705,28189.0,28186.0,0.03978]
[1680704205039,0.027705,28189.0,28182.0,0.03978]
[1680704205244,0.13689681,28188.0,28181.0,6e-05]
[1680704205453,0.13689681,28188.0,28183.0,0.03978]
[1680704205658,0.13689681,28188.0,28182.0,0.00018]
[1680704205871,0.13689681,28188.0,28184.0,0.03978]
[1680704206076,0.001,28189.0,28182.0,0.04278]
[1680704206283,0.14289681,28189.0,28185.0,0.03978]
[1680704206487,0.00021,28190.0,28186.0,0.37484125]
[1680704206691,0.00021,28194.0,28187.0,0.04989169]
[1680704206926,0.00021,28194.0,28188.0,0.02013069]
[1680704207311,0.00021,28194.0,28188.0,0.05991069]
[1680704207437,1.98701,28195.0,28189.0,0.03978]
[1680704207650,0.027466,28194.0,28189.0,0.05991069]
[1680704207871,0.027676,28194.0,28189.0,0.05991069]
[1680704208111,0.001,28194.0,28190.0,0.03978]
[1680704208317,0.35471056,28195.0,28190.0,0.03978]
[1680704208537,0.025,28194.0,28190.0,0.05991069]
[1680704208746,0.36889756,28195.0,28191.0,0.03978]
[1680704208984,0.38285656,28194.0,28191.0,0.03978]
[1680704209772,0.49660737,28192.0,28185.0,0.03996]
[1680704210124,0.14189681,28191.0,28186.0,0.03978]
[1680704210332,0.00021,28193.0,28186.0,0.03978]
[1680704210550,1.98701,28197.0,28188.0,0.08420575]
[1680704210758,1.98701,28197.0,28188.0,0.01]
[1680704210759,0.2817,28192.0,28188.0,0.01]
[1680704210972,0.2817,28192.0,28184.0,0.16907549]
[1680704210973,0.2817,28189.0,28184.0,0.00012]
[1680704211182,0.17559,28187.0,28186.0,0.01]
[1680704211402,0.17559,28187.0,28180.0,0.00018]
[1680704211403,0.369,28186.0,28180.0,0.00018]
[1680704211610,0.2817,28182.0,28178.0,0.0216]
[1680704211829,0.54840437,28181.0,28178.0,0.0216]
[1680704212046,0.037656,28180.0,28178.0,0.0216]
[1680704212267,0.54866737,28180.0,28178.0,0.0216]
[1680704212477,0.40677056,28180.0,28178.0,0.0216]
[1680704212689,0.47845642,28180.0,28178.0,0.0216]
[1680704212900,0.47845642,28180.0,28179.0,0.0166]
[1680704212901,0.47833642,28180.0,28179.0,0.0166]
[1680704213124,0.2817,28182.0,28179.0,0.39144125]
[1680704213332,6e-05,28184.0,28180.0,0.37484125]
[1680704213541,0.024,28181.0,28180.0,0.37484125]
[1680704213753,0.25225616,28187.0,28181.0,0.03978]
[1680704213754,0.00021,28185.0,28181.0,0.03978]
[1680704213971,0.25240616,28187.0,28182.0,0.02013069]
[1680704214181,0.027141,28186.0,28183.0,0.02013069]
[1680704214390,0.01419,28189.0,28183.0,0.02013069]
[1680704214604,0.424688,28191.0,28184.0,0.02013069]
[1680704214605,0.00021,28191.0,28184.0,0.02013069]
[1680704214823,0.2817,28193.0,28185.0,0.32802502]
[1680704215034,0.001,28187.0,28186.0,0.05342069]
[1680704215245,0.36910756,28193.0,28186.0,0.07307]
[1680704215458,0.36910756,28193.0,28186.0,0.03978]
[1680704215459,0.35471056,28192.0,28186.0,0.03978]
[1680704215681,0.142566,28191.0,28185.0,0.03996]
[1680704215898,0.35471056,28190.0,28183.0,0.00018]
[1680704216141,0.01419,28188.0,28182.0,0.00018]
[1680704216349,0.01419,28188.0,28181.0,0.16654753]
[1680704216350,0.029668,28187.0,28181.0,0.16654753]
[1680704216555,0.014191,28186.0,28181.0,0.16654753]
[1680704216777,0.14189681,28185.0,28183.0,0.004]
[1680704216990,0.024114,28184.0,28183.0,0.004]
[1680704217201,0.014191,28186.0,28181.0,0.03978]
[1680704217405,0.15608781,28186.0,28181.0,0.05178]
[1680704217617,0.48132256,28185.0,28181.0,0.03978]
[1680704217832,0.039558,28184.0,28181.0,0.03978]
[1680704218074,0.039558,28184.0,28179.0,0.01678]
[1680704218075,0.35471056,28183.0,28179.0,0.01678]
[1680704218285,0.18208081,28182.0,28179.0,0.0166]
[1680704218486,0.38168056,28181.0,28179.0,0.0166]
[1680704218691,0.024906,28180.0,28179.0,0.0166]
[1680704218915,0.37961656,28180.0,28179.0,0.0166]
[1680704219325,0.024906,28180.0,28179.0,0.0166]
[1680704219533,0.00021,28183.0,28179.0,0.0166]
[1680704219738,0.014192,28185.0,28179.0,0.0166]
[1680704219868,0.39384056,28184.0,28180.0,0.02013069]
[1680704220076,0.026753,28183.0,28180.0,0.02013069]
[1680704220364,0.014193,28182.0,28179.0,0.0206]
[1680704220573,0.36890356,28182.0,28179.0,0.0206]
[1680704220778,0.36890356,28182.0,28179.0,0.0166]
[1680704220983,0.35471056,28182.0,28180.0,0.001]
[1680704221188,0.027087,28181.0,28180.0,0.001]
[1680704221409,0.38179756,28181.0,28180.0,0.001]
[1680704222084,0.027087,28181.0,28180.0,0.001]
[1680704222291,0.4,28189.0,28179.0,0.0166]
[1680704222292,0.00021,28186.0,28179.0,0.0166]
[1680704222501,0.1,28189.0,28180.0,0.02013069]
[1680704222502,0.01419,28188.0,28180.0,0.02013069]
[1680704222717,0.35471056,28187.0,28180.0,0.02013069]
[1680704223172,0.01,28181.0,28180.0,0.02113069]
[1680704223381,0.35471056,28187.0,28181.0,0.03978]
[1680704223594,0.00121,28188.0,28182.0,0.02013069]
[1680704223822,0.00121,28188.0,28183.0,0.02013069]
[1680704223823,0.35471056,28188.0,28183.0,0.02013069]
[1680704224035,0.35471056,28188.0,28183.0,0.05991069]
[1680704224036,0.35471056,28187.0,28183.0,0.05991069]
[1680704224237,0.35471056,28187.0,28184.0,0.03978]
[1680704224647,0.35471056,28187.0,28181.0,0.06009069]
[1680704224857,0.54628943,28187.0,28182.0,0.03978]
[1680704225074,0.025848,28186.0,28182.0,0.03978]
[1680704225282,0.36890256,28185.0,28179.0,0.05656]
[1680704225484,0.14189681,28184.0,28179.0,0.0565]
[1680704225687,0.14189681,28185.0,28183.0,0.001]
[1680704225905,0.014191,28186.0,28179.0,0.05638]
[1680704226122,0.14289681,28186.0,28182.0,0.01]
[1680704226336,0.00021,28188.0,28180.0,0.03978]
[1680704226548,0.01,28185.0,28183.0,0.001]
[1680704226752,0.35471056,28188.0,28183.0,0.001]
[1680704226973,0.038815,28187.0,28183.0,0.02013069]
[1680704227183,0.35471056,28188.0,28182.0,0.04478]
[1680704227184,0.36890056,28188.0,28182.0,0.04478]
[1680704227399,0.35471056,28188.0,28182.0,0.02513069]
[1680704227661,0.53493733,28188.0,28182.0,0.02513069]
[1680704227874,0.35471056,28187.0,28182.0,0.005]
[1680704228089,0.35471056,28187.0,28180.0,0.03978]
[1680704228494,0.008,28185.0,28183.0,0.001]
[1680704228691,0.35471056,28187.0,28180.0,0.06009069]
[1680704228892,0.15608781,28186.0,28182.0,0.005]
[1680704229092,0.014191,28186.0,28181.0,0.03978]
[1680704229243,0.39160072,28185.0,28181.0,0.03978]
[1680704229643,0.36890256,28185.0,28181.0,0.03978]
[1680704230117,0.36890256,28185.0,28180.0,0.03996]
[1680704230663,0.51079937,28185.0,28180.0,0.03996]
[1680704231022,0.36890256,28185.0,28180.0,0.03996]
[1680704231900,0.36890256,28185.0,28181.0,0.005]
[1680704232099,0.024257,28184.0,28180.0,0.03996]
[1680704232306,0.35571056,28185.0,28180.0,0.05096]
[1680704232497,0.015192,28185.0,28180.0,0.07109069]
[1680704232724,0.014192,28185.0,28181.0,0.073211]
[1680704232939,0.38221,28190.0,28181.0,0.073211]
[1680704232940,0.00012,28190.0,28182.0,0.05142069]
[1680704233146,0.028376,28193.0,28183.0,0.05299369]
[1680704233336,0.0227007,28193.0,28184.0,0.48887756]
[1680704233541,0.0227007,28193.0,28185.0,0.02013069]
[1680704233830,0.0227007,28193.0,28185.0,0.41462125]
[1680704233987,0.16459751,28193.0,28186.0,0.03978]
[1680704234180,0.16459751,28193.0,28187.0,0.02013069]
[1680704234181,0.0227007,28193.0,28187.0,0.02013069]
[1680704234383,0.0311417,28192.0,28187.0,0.02013069]
[1680704234564,0.0311417,28192.0,28186.0,0.03978]
[1680704234788,0.52774907,28192.0,28186.0,0.03978]
[1680704234995,0.38585226,28192.0,28186.0,0.02031069]
[1680704235207,0.38685226,28192.0,28187.0,0.017]
[1680704235415,0.38585226,28192.0,28186.0,0.02031069]
[1680704235625,0.0311417,28192.0,28187.0,0.37484125]
[1680704235833,0.0311417,28192.0,28188.0,0.040833]
[1680704235834,0.0321417,28192.0,28188.0,0.040833]
[1680704236038,0.0311417,28192.0,28189.0,0.38723156]
[1680704236243,0.00021,28200.0,28190.0,0.033356]
[1680704236451,0.36889556,28199.0,28191.0,0.02013069]
[1680704236680,0.05107924,28198.0,28191.0,0.02013069]
[1680704236887,0.35471056,28197.0,28191.0,0.02013069]
[1680704237094,0.35492056,28197.0,28191.0,0.02013069]
[1680704237298,0.40077078,28197.0,28191.0,0.02013069]
[1680704237507,0.38658578,28197.0,28191.0,0.02013069]
[1680704237728,0.38658578,28197.0,28189.0,0.37232]
[1680704237729,0.03187522,28197.0,28192.0,0.05991069]
[1680704237953,0.03166522,28197.0,28193.0,0.03978]
[1680704238178,0.03266522,28197.0,28194.0,0.03298]
[1680704238413,0.00021,28202.0,28194.0,0.03298]
[1680704238414,0.014393,28202.0,28194.0,0.03298]
[1680704238618,0.3735,28204.0,28194.0,0.03978]
[1680704238619,0.001,28197.0,28194.0,0.03978]
[1680704238825,0.001,28197.0,28195.0,0.033856]
[1680704239035,0.014183,28202.0,28193.0,0.072871]
[1680704239257,0.001,28197.0,28194.0,0.08591069]
[1680704239469,0.001,28197.0,28195.0,0.032048]
[1680704239470,0.03172244,28196.0,28195.0,0.032048]
[1680704239903,0.03172244,28196.0,28194.0,0.026]
[1680704240108,0.03172244,28196.0,28192.0,0.03978]
[1680704240310,0.03172244,28196.0,28194.0,0.03978]
[1680704240523,0.03172244,28196.0,28193.0,0.03978]
[1680704240740,0.03172244,28196.0,28194.0,0.07356]
[1680704240968,0.03272244,28196.0,28195.0,0.031832]
[1680704241172,0.03172244,28196.0,28195.0,0.031832]
[1680704241388,0.03172244,28196.0,28193.0,0.06578]
[1680704241389,0.01772244,28196.0,28193.0,0.06578]
[1680704241586,0.01772244,28196.0,28194.0,0.035297]
[1680704241809,0.01772244,28196.0,28191.0,0.03978]
[1680704241810,0.35471056,28195.0,28191.0,0.03978]
[1680704242016,0.21156881,28194.0,28189.0,0.00018]
[1680704242221,0.37979056,28193.0,28188.0,0.00012]
[1680704242437,0.14189681,28192.0,28188.0,0.00018]
[1680704242649,0.040665,28191.0,28187.0,0.00018]
[1680704242856,0.52197137,28190.0,28187.0,0.00018]
[1680704243093,0.038532,28189.0,28186.0,0.00012]
[1680704243305,0.38072656,28188.0,28184.0,0.00018]
[1680704243536,0.18134181,28187.0,28183.0,0.00018]
[1680704243773,0.51079837,28187.0,28183.0,0.00018]
[1680704243977,0.38042056,28186.0,28183.0,0.00012]
[1680704244180,0.35471056,28186.0,28184.0,0.001]
[1680704244387,0.025712,28185.0,28184.0,0.001]
[1680704244598,0.38042256,28185.0,28183.0,0.00018]
[1680704244795,0.35471056,28185.0,28183.0,0.00018]
[1680704245228,0.00021,28188.0,28184.0,0.08459147]
[1680704245433,0.1,28197.0,28185.0,0.13810116]
[1680704245434,0.3723,28194.0,28185.0,0.13810116]
[1680704245644,0.35471056,28193.0,28185.0,0.14450216]
[1680704245860,0.35492056,28193.0,28186.0,0.03978]
[1680704246060,0.44309922,28193.0,28187.0,0.02013069]
[1680704246275,0.025594,28192.0,28187.0,0.05991069]
[1680704246487,0.025594,28192.0,28187.0,0.02013069]
[1680704246721,0.025594,28192.0,28188.0,0.03978]
[1680704246722,0.35471056,28191.0,28188.0,0.03978]
[1680704246924,0.35471056,28191.0,28185.0,0.08459147]
[1680704246925,0.026398,28190.0,28186.0,0.03978]
[1680704247346,0.35471056,28191.0,28186.0,0.03978]
[1680704247577,0.00021,28193.0,28186.0,0.05991069]
[1680704247790,0.35471056,28192.0,28187.0,0.02013069]
[1680704247992,0.003,28191.0,28187.0,0.05991069]
[1680704248195,0.35471056,28192.0,28188.0,0.03978]
[1680704248420,0.35471056,28192.0,28186.0,0.04978]
[1680704248636,0.14189681,28192.0,28186.0,0.14450216]
[1680704248866,0.14189681,28192.0,28187.0,0.04378]
[1680704249069,0.00021,28195.0,28187.0,0.04378]
[1680704249277,0.35471056,28194.0,28188.0,0.05991069]
[1680704249483,0.02770032,28191.0,28188.0,0.05991069]
[1680704249705,0.02770032,28191.0,28188.0,0.03978]
[1680704250114,0.02770032,28191.0,28187.0,0.03978]
[1680704250320,0.00021,28194.0,28187.0,0.39449056]
[1680704250527,0.14189681,28194.0,28188.0,0.02013069]
[1680704250724,0.00021,28195.0,28188.0,0.05991069]
[1680704250940,0.002,28191.0,28189.0,0.02013069]
[1680704251183,0.014187,28194.0,28187.0,0.12437147]
[1680704251386,0.15829381,28194.0,28187.0,0.02013069]
[1680704251636,0.14410681,28194.0,28188.0,0.03978]
[1680704251838,0.51100437,28194.0,28188.0,0.03999069]
[1680704252017,0.38129456,28193.0,28188.0,0.01986]
[1680704252216,0.067597,28192.0,28188.0,0.01986]
[1680704252560,0.37944556,28191.0,28185.0,0.01986]
[1680704252765,0.15608581,28190.0,28185.0,0.01986]
[1680704253008,0.49660737,28190.0,28185.0,0.01986]
[1680704253235,0.025972,28189.0,28188.0,0.004]
[1680704253444,0.025936,28189.0,28188.0,0.004]
[1680704253727,0.025936,28189.0,28185.0,0.01986]
[1680704253945,0.35492056,28190.0,28185.0,0.01986]
[1680704253946,0.35592056,28190.0,28185.0,0.03686]
[1680704254396,0.39715372,28190.0,28186.0,0.01986]
[1680704254607,0.026752,28189.0,28186.0,0.01986]
[1680704254836,0.14189681,28188.0,28183.0,0.02004]
[1680704255045,1.04742244,28187.0,28180.0,0.00012]
[1680704255259,0.042574,28185.0,28179.0,0.0166]
[1680704255480,0.49660737,28184.0,28179.0,0.0166]
[1680704255696,0.040439,28183.0,28179.0,0.0166]
[1680704255912,0.49681737,28184.0,28180.0,0.35471056]
[1680704255913,0.024148,28182.0,28180.0,0.35471056]
[1680704256141,0.00021,28184.0,28181.0,0.034241]
[1680704256366,0.00021,28186.0,28185.0,0.017]
[1680704256597,0.001,28190.0,28185.0,0.017]
[1680704256598,0.001,28190.0,28185.0,0.052516]
[1680704256805,0.001,28190.0,28185.0,0.03686]
[1680704257013,0.00021,28192.0,28186.0,0.01986]
[1680704257234,0.35471056,28192.0,28187.0,0.02013069]
[1680704257457,0.00021,28192.0,28187.0,0.02013069]
[1680704257666,0.14189681,28192.0,28188.0,0.01986]
[1680704257875,0.3862,28195.0,28188.0,0.01986]
[1680704257876,0.001,28190.0,28188.0,0.01986]
[1680704258085,0.35492056,28194.0,28185.0,0.01986]
[1680704258311,0.014189,28191.0,28186.0,0.02013069]
[1680704258520,0.14189681,28191.0,28185.0,0.01986]
[1680704258773,0.17313409,28191.0,28184.0,0.01986]
[1680704258957,0.17313409,28191.0,28187.0,0.001]
[1680704258958,0.14189681,28190.0,28187.0,0.001]
[1680704259184,0.014399,28191.0,28184.0,0.03999069]
[1680704259394,0.14189681,28190.0,28185.0,0.01986]
[1680704259606,0.49681737,28190.0,28185.0,0.024]
[1680704259821,0.05162839,28189.0,28185.0,0.04386]
[1680704260065,0.05183839,28189.0,28185.0,0.024]
[1680704260274,0.00021,28189.0,28183.0,0.01986]
[1680704260482,0.14189681,28189.0,28183.0,0.14702252]
[1680704260685,0.14210681,28189.0,28183.0,0.14702252]
[1680704260902,0.14210681,28189.0,28185.0,0.004]
[1680704261111,0.025959,28188.0,28185.0,0.004]
[1680704261329,0.00021,28189.0,28185.0,0.37884125]
[1680704261551,0.00021,28191.0,28186.0,0.10462445]
[1680704261758,0.014399,28191.0,28186.0,0.12475514]
[1680704261965,0.014399,28191.0,28187.0,0.10462445]
[1680704261966,0.001,28189.0,28187.0,0.10462445]
[1680704262196,0.01419,28189.0,28187.0,0.01986]
[1680704262405,0.00021,28192.0,28187.0,0.01986]
[1680704262616,0.38077756,28192.0,28187.0,0.03999069]
[1680704262831,0.025913,28191.0,28187.0,0.03999069]
[1680704263043,0.009,28189.0,28187.0,0.02086]
[1680704263902,0.014189,28189.0,28187.0,0.01986]
[1680704264309,0.04295818,28190.0,28187.0,0.01986]
[1680704264515,0.014189,28189.0,28187.0,0.01986]
[1680704264717,0.009,28192.0,28187.0,0.02086]
[1680704264920,0.025147,28191.0,28187.0,0.03999069]
[1680704265132,0.009,28190.0,28187.0,0.02086]
[1680704265538,0.00021,28193.0,28187.0,0.01986]
[1680704265744,0.04449206,28192.0,28187.0,0.04099069]
[1680704265926,0.026782,28191.0,28187.0,0.10462445]
[1680704266160,0.00021,28192.0,28187.0,0.10462445]
[1680704266161,0.026687,28192.0,28187.0,0.10462445]
[1680704266574,0.026687,28192.0,28187.0,0.08576445]
[1680704266770,0.009,28190.0,28187.0,0.10562445]
[1680704267493,0.03976846,28192.0,28187.0,0.10462445]
[1680704267694,0.026118,28191.0,28187.0,0.10462445]
[1680704267895,0.026328,28191.0,28187.0,0.10462445]
[1680704268094,0.00021,28191.0,28187.0,0.10562445]
[1680704268323,0.00021,28193.0,28187.0,0.10462445]
[1680704268526,0.009,28191.0,28188.0,0.08476445]
[1680704268953,0.009,28191.0,28187.0,0.10562445]
[1680704269330,0.00021,28192.0,28187.0,0.10462445]
[1680704269534,0.011,28191.0,28188.0,0.001]
[1680704270366,0.00021,28193.0,28187.0,0.10462445]
[1680704270367,0.014398,28193.0,28187.0,0.10462445]
[1680704270571,0.009,28191.0,28187.0,0.12575514]
[1680704270736,0.038851,28193.0,28187.0,0.10462445]
[1680704270918,0.027631,28192.0,28187.0,0.12475514]
[1680704271119,0.011,28191.0,28188.0,0.001]
[1680704271363,0.025661,28190.0,28187.0,0.10462445]
[1680704271570,0.025661,28190.0,28187.0,0.10562445]
[1680704271766,0.025661,28190.0,28187.0,0.10462445]
[1680704271968,0.04321926,28191.0,28187.0,0.10462445]
[1680704272167,0.03029593,28190.0,28187.0,0.10462445]
[1680704272382,0.05421926,28191.0,28188.0,0.001]
[1680704272585,0.026988,28190.0,28188.0,0.001]
[1680704272830,0.02690253,28190.0,28188.0,0.001]
[1680704273387,0.02690253,28190.0,28187.0,0.01986]
[1680704273566,0.02690253,28190.0,28187.0,0.02086]
[1680704273805,0.02690253,28190.0,28187.0,0.01986]
[1680704274076,0.39261309,28190.0,28188.0,0.001]
[1680704274285,0.026012,28189.0,28188.0,0.001]
[1680704275338,0.026012,28189.0,28187.0,0.01986]
[1680704276689,0.026012,28189.0,28186.0,0.10480445]
[1680704276899,0.026012,28189.0,28187.0,0.01986]
[1680704277135,0.024717,28188.0,28187.0,0.02086]
[1680704278019,0.024717,28188.0,28187.0,0.001]
[1680704278269,0.37942756,28188.0,28187.0,0.001]
[1680704278501,0.40804962,28188.0,28187.0,0.001]
[1680704278710,0.02862206,28188.0,28187.0,0.001]
[1680704279169,0.02862206,28188.0,28187.0,0.02086]
[1680704279381,0.02862206,28188.0,28187.0,0.01986]
[1680704279593,0.03662206,28188.0,28187.0,0.053027]
[1680704279799,0.02862206,28188.0,28187.0,0.14702252]
[1680704280005,0.03662206,28188.0,28187.0,0.14802252]
[1680704280221,0.02862206,28188.0,28187.0,0.22202549]
[1680704280439,0.008,28188.0,28187.0,0.56527306]
[1680704280867,0.008,28188.0,28187.0,0.54541306]
[1680704281081,0.008,28188.0,28187.0,0.56527306]
[1680704281952,0.008,28188.0,28187.0,0.43502042]
[1680704282163,0.008,28188.0,28187.0,0.22405736]
[1680704283018,0.008,28188.0,28187.0,0.43502042]
[1680704283223,0.008,28188.0,28187.0,0.26509306]
[1680704283437,0.008,28188.0,28187.0,0.43765125]
[1680704283662,0.00021,28197.0,28188.0,0.1]
[1680704283873,0.0985023,28203.0,28192.0,0.0848684]
[1680704283874,0.00021,28200.0,28192.0,0.0848684]
[1680704284086,0.00021,28200.0,28193.0,0.10499909]
[1680704284537,0.02028715,28199.0,28194.0,0.01986]
[1680704284744,0.02049715,28199.0,28195.0,0.02013069]
[1680704285173,0.02028715,28199.0,28195.0,0.02013069]
[1680704285381,0.02028715,28199.0,28194.0,0.01986]
[1680704285631,0.02028715,28199.0,28195.0,0.039754]
[1680704285846,0.02028715,28199.0,28196.0,0.032544]
[1680704286052,0.02028715,28199.0,28196.0,0.47212296]
[1680704286266,0.02028715,28199.0,28197.0,0.1189524]
[1680704286481,0.02028715,28199.0,28198.0,0.032055]
[1680704286687,0.02028715,28199.0,28198.0,0.1792176]
[1680704286906,0.02028715,28199.0,28198.0,0.4792176]
[1680704287116,0.02028715,28199.0,28198.0,0.451915]
[1680704287291,0.02028715,28199.0,28198.0,0.351915]
[1680704287525,0.00021,28204.0,28199.0,0.034329]
[1680704287732,0.02397001,28205.0,28199.0,0.05445969]
[1680704287941,0.02397001,28205.0,28196.0,0.52444737]
[1680704287942,0.35471056,28204.0,28200.0,0.01986]
[1680704288161,0.039072,28203.0,28198.0,0.01986]
[1680704288368,0.039072,28203.0,28196.0,0.01986]
[1680704288369,0.001,28199.0,28196.0,0.01986]
[1680704288576,0.00021,28201.0,28197.0,0.01986]
[1680704288800,0.025483,28201.0,28196.0,0.01986]
[1680704289009,0.00021,28201.0,28195.0,0.01986]
[1680704289221,0.00021,28201.0,28200.0,0.002]
[1680704289491,0.0190723,28200.0,28195.0,0.01986]
[1680704289693,0.00021,28200.0,28196.0,0.012]
[1680704289910,0.03794201,28205.0,28196.0,0.012]
[1680704289911,0.00021,28202.0,28196.0,0.012]
[1680704290126,0.35492056,28202.0,28197.0,0.01986]
[1680704290334,0.00021,28202.0,28198.0,0.02013069]
[1680704290536,0.00021,28203.0,28198.0,0.02013069]
[1680704290753,0.16565682,28205.0,28198.0,0.02013069]
[1680704290754,0.35471056,28204.0,28199.0,0.01986]
[1680704290968,0.35471056,28204.0,28199.0,0.04017069]
[1680704291178,0.01897001,28205.0,28199.0,0.04017069]
[1680704291388,0.01897001,28205.0,28196.0,0.39676992]
[1680704291389,0.37368057,28205.0,28200.0,0.03999069]
[1680704291602,0.006,28201.0,28200.0,0.04099069]
[1680704291814,0.006,28201.0,28198.0,0.00018]
[1680704291815,0.2793,28201.0,28198.0,0.00018]
[1680704292058,0.643882,28199.0,28196.0,0.00018]
[1680704292267,0.026155,28198.0,28192.0,0.00012]
[1680704292474,0.468303,28197.0,28192.0,0.00018]
[1680704292684,0.024943,28196.0,28192.0,0.00018]
[1680704292877,0.042561,28195.0,28192.0,0.00018]
[1680704293120,0.026458,28194.0,28192.0,0.00018]
[1680704293306,0.042562,28193.0,28191.0,0.00018]
[1680704293541,0.35471056,28192.0,28191.0,0.00018]
[1680704293748,0.39371356,28192.0,28191.0,0.00018]
[1680704293957,0.57781923,28192.0,28191.0,0.00018]
[1680704294164,0.43592242,28192.0,28190.0,0.00018]
[1680704294369,0.025657,28191.0,28190.0,0.00018]
[1680704294574,0.42293256,28191.0,28190.0,0.00018]
[1680704295443,0.87680102,28191.0,28190.0,0.00018]
[1680704295657,0.87680102,28191.0,28189.0,0.00012]
[1680704295658,0.97680102,28191.0,28189.0,0.00012]
[1680704295877,0.76721256,28190.0,28188.0,0.00018]
[1680704296121,0.409877,28189.0,28188.0,0.00018]
[1680704296369,0.76458756,28189.0,28188.0,0.00018]
[1680704296833,0.76458756,28189.0,28187.0,0.00018]
[1680704297071,0.75060956,28188.0,28187.0,0.00012]
[1680704297283,0.76479956,28188.0,28186.0,0.00018]
[1680704297463,0.02648,28187.0,28186.0,0.00018]
[1680704297700,0.39416542,28187.0,28184.0,0.08476992]
[1680704297910,0.38123756,28186.0,28184.0,0.00012]
[1680704298135,0.024896,28185.0,28184.0,0.00012]
[1680704298574,0.37960656,28185.0,28183.0,0.08494992]
[1680704298767,0.35471056,28184.0,28183.0,0.08494992]
[1680704299978,0.35471056,28184.0,28183.0,0.00018]
[1680704300413,0.35471056,28184.0,28183.0,0.08494992]
[1680704300846,0.37964056,28184.0,28183.0,0.08494992]
[1680704301052,0.37964056,28184.0,28183.0,0.00118]
[1680704301257,0.38564056,28184.0,28183.0,0.00012]